fUSD/lending_fUSD_20240117
["ID","MTS","AMOUNT","RATE_DAILY","PERIOD"]
[311887557,1705489846827,-500.0,0.00021917,2]
[311887559,1705489846836,-524.15,0.00021917,2]
[311887561,1705489846846,-904.79,0.00021917,2]
[311887563,1705489846855,-500.0,0.00021917,2]
[311887565,1705489846865,-510.6,0.00021917,2]
[311887567,1705489846874,-576.31,0.00021917,2]
[311887569,1705489846884,-1190.34,0.00021917,2]
[311887571,1705489846893,-500.0,0.00021917,2]
[311887573,1705489846902,-764.68,0.00021917,2]
[311887575,1705489846912,-321.09522495,0.00021917,2]
[311887577,1705489846920,-1052.25,0.00021917,2]
[311887579,1705489846930,-636.43,0.00021917,2]
[311887581,1705489846939,-500.0,0.00021917,2]
[311887583,1705489846948,-1264.48,0.00021917,2]
[311887585,1705489846957,-670.55,0.00021917,2]
[311887587,1705489846967,-814.85,0.00021917,2]
[311887589,1705489846976,-500.0,0.00021917,2]
[311887591,1705489846984,-500.0,0.00021917,2]
[311887593,1705489846994,-544.71,0.00021917,2]
[311887595,1705489847003,-500.0,0.00021917,2]
[311887597,1705489847013,-500.0,0.00021917,2]
[311887599,1705489847022,-1198.01,0.00021917,2]
[311887601,1705489847031,-1206.43,0.00021917,2]
[311887603,1705489847040,-500.0,0.00021917,2]
[311887605,1705489847050,-500.0,0.00021917,2]
[311887607,1705489847059,-500.0,0.00021917,2]
[311887609,1705489847069,-1043.84,0.00021917,2]
[311887611,1705489847078,-500.0,0.00021917,2]
[311887613,1705489847088,-1304.35,0.00021917,2]
[311887615,1705489847097,-524.77991901,0.00021917,2]
[311887617,1705489847106,-500.0,0.00021917,2]
[311887619,1705489847115,-500.0,0.00021917,2]
[311887621,1705489847125,-1069.27,0.00021917,2]
[311887623,1705489847134,-343.21423803,0.00021917,2]
[311887625,1705489847144,-1087.69,0.00021917,2]
[311887627,1705489847154,-962.26,0.00021917,2]
[311887629,1705489847164,-500.0,0.00021917,2]
[311887631,1705489847173,-396.58840914,0.00021917,2]
[311887633,1705489847182,-500.0,0.00021917,2]
[311887635,1705489847191,-500.0,0.00021917,2]
[311887637,1705489847200,-500.0,0.00021917,2]
[311887639,1705489847210,-500.0,0.00021917,2]
[311887641,1705489847219,-500.0,0.00021917,2]
[311887643,1705489847228,-995.2,0.00021917,2]
[311887645,1705489847237,-1632.67,0.00021917,2]
[311887647,1705489847247,-516.2,0.00021917,2]
[311887649,1705489847257,-500.0,0.00021917,2]
[311887651,1705489847267,-500.0,0.00021917,2]
[311887653,1705489847276,-939.16,0.00021917,2]
[311887655,1705489847286,-918.4,0.00021917,2]
[311887657,1705489847295,-500.0,0.00021917,2]
[311887659,1705489847305,-1008.57,0.00021917,2]
[311887661,1705489847314,-535.2797307,0.00021917,2]
[311887663,1705489847323,-500.0,0.00021917,2]
[311887665,1705489847333,-500.0,0.00021917,2]
[311887667,1705489847347,-1029.51,0.00021917,2]
[311887669,1705489847356,-500.0,0.00021917,2]
[311887671,1705489847366,-500.0,0.00021917,2]
[311887674,1705489847376,-500.0,0.00021917,2]
[311887676,1705489847386,-1060.73,0.00021917,2]
[311887678,1705489847395,-500.0,0.00021917,2]
[311887680,1705489847405,-500.0,0.00021917,2]
[311887682,1705489847415,-636.13,0.00021917,2]
[311887684,1705489847426,-500.0,0.00021917,2]
[311887686,1705489847435,-500.0,0.00021917,2]
[311887688,1705489847445,-500.0,0.00021917,2]
[311887690,1705489847455,-500.0,0.00021917,2]
[311887692,1705489847464,-702.02,0.00021917,2]
[311887694,1705489847474,-516.89152654,0.00021917,2]
[311887696,1705489847483,-594.97,0.00021917,2]
[311887698,1705489847493,-701.5,0.00021917,2]
[311887700,1705489847503,-1038.32,0.00021917,2]
[311887702,1705489847512,-572.4,0.00021917,2]
[311887704,1705489847521,-3550.63,0.00021917,2]
[311887706,1705489847530,-982.96,0.00021917,2]
[311887708,1705489847539,-500.0,0.00021917,2]
[311887710,1705489847548,-500.0,0.00021917,2]
[311887712,1705489847558,-579.93,0.00021917,2]
[311887714,1705489847569,-924.4,0.00021917,2]
[311887716,1705489847578,-500.0,0.00021917,2]
[311887718,1705489847587,-500.0,0.00021917,2]
[311887720,1705489847596,-500.0,0.00021917,2]
[311887722,1705489847606,-500.0,0.00021917,2]
[311887724,1705489847615,-578.12,0.00021917,2]
[311887726,1705489847624,-500.0,0.00021917,2]
[311887728,1705489847633,-885.89,0.00021917,2]
[311887730,1705489847642,-694.35,0.00021917,2]
[311887732,1705489847651,-711.56,0.00021917,2]
[311887734,1705489847661,-500.0,0.00021917,2]
[311887736,1705489847670,-1404.62,0.00021917,2]
[311887737,1705489847679,-1235.63,0.00021917,2]
[311887738,1705489847688,-500.0,0.00021917,2]
[311887739,1705489847697,-500.0,0.00021917,2]
[311887740,1705489847706,-635.43,0.00021917,2]
[311887741,1705489847715,-500.0,0.00021917,2]
[311887742,1705489847724,-1174.22,0.00021917,2]
[311887743,1705489847733,-500.0,0.00021917,2]
[311887744,1705489847743,-915.13,0.00021917,2]
[311887745,1705489847753,-500.0,0.00021917,2]
[311887747,1705489847762,-701.7,0.00021917,2]
[311887749,1705489847771,-500.0,0.00021917,2]
[311887751,1705489847781,-500.0,0.00021917,2]
[311887753,1705489847790,-544.59,0.00021917,2]
[311887754,1705489847799,-2849.83,0.00021917,2]
[311887755,1705489847808,-500.0,0.00021917,2]
[311887756,1705489847818,-1964.36,0.00021917,2]
[311887757,1705489847828,-246.32240116,0.00021917,2]
[311887758,1705489847837,-2896.5,0.00021917,2]
[311887759,1705489847847,-1968.52,0.00021917,2]
[311887760,1705489847857,-683.02,0.00021917,2]
[311887761,1705489847865,-1342.01,0.00021917,2]
[311887762,1705489847875,-500.0,0.00021917,2]
[311887763,1705489847885,-675.72,0.00021917,2]
[311887764,1705489847894,-500.0,0.00021917,2]
[311887765,1705489847903,-1029.41,0.00021917,2]
[311887766,1705489847913,-500.0,0.00021917,2]
[311887767,1705489847922,-1548.58,0.00021917,2]
[311887768,1705489847931,-500.0,0.00021917,2]
[311887769,1705489847940,-500.0,0.00021917,2]
[311887770,1705489847949,-655.65,0.00021917,2]
[311887771,1705489847958,-500.0,0.00021917,2]
[311887772,1705489847968,-3528.9,0.00021917,2]
[311887773,1705489847977,-500.0,0.00021917,2]
[311887774,1705489847987,-500.0,0.00021917,2]
[311887775,1705489847996,-550.17,0.00021917,2]
[311887776,1705489848006,-530.48,0.00021917,2]
[311887777,1705489848016,-1274.2,0.00021917,2]
[311887778,1705489848025,-1478.93,0.00021917,2]
[311887779,1705489848034,-500.0,0.00021917,2]
[311887780,1705489848043,-826.31,0.00021917,2]
[311887781,1705489848053,-710.03,0.00021917,2]
[311887782,1705489848062,-8305.92,0.00021917,2]
[311887783,1705489848072,-500.0,0.00021917,2]
[311887784,1705489848081,-3468.63,0.00021917,2]
[311887785,1705489848090,-688.83,0.00021917,2]
[311887786,1705489848100,-598.69,0.00021917,2]
[311887787,1705489848109,-13840.01,0.00021917,2]
[311887788,1705489848119,-566.04,0.00021917,2]
[311887789,1705489848129,-500.0,0.00021917,2]
[311887790,1705489848138,-330.45,0.00021917,2]
[311887791,1705489848148,-611.72,0.00021917,2]
[311887792,1705489848157,-678.15,0.00021917,2]
[311887793,1705489848167,-500.0,0.00021917,2]
[311887794,1705489848176,-6007.21,0.00021917,2]
[311887795,1705489848185,-11260.59,0.00021917,2]
[311887796,1705489848194,-537.26,0.00021917,2]
[311887797,1705489848204,-576.52,0.00021917,2]
[311887798,1705489848213,-839.94,0.00021917,2]
[311887799,1705489848222,-9043.74,0.00021917,2]
[311887800,1705489848231,-500.0,0.00021917,2]
[311887801,1705489848241,-500.0,0.00021917,2]
[311887802,1705489848250,-500.0,0.00021917,2]
[311887803,1705489848260,-2267.53,0.00021917,2]
[311887804,1705489848270,-2426.8,0.00021917,2]
[311887805,1705489848280,-785.85,0.00021917,2]
[311887806,1705489848289,-588.87146392,0.00021917,2]
[311887807,1705489848299,-500.0,0.00021917,2]
[311887809,1705489848308,-1153.46,0.00021917,2]
[311887811,1705489848318,-5019.46,0.00021917,2]
[311887813,1705489848327,-14230.88,0.00021917,2]
[311887815,1705489848338,-1948.18,0.00021917,2]
[311887817,1705489848348,-648.92,0.00021917,2]
[311887819,1705489848357,-500.0,0.00021917,2]
[311887821,1705489848367,-585.41,0.00021917,2]
[311887823,1705489848376,-807.32,0.00021917,2]
[311887825,1705489848386,-500.0,0.00021917,2]
[311887827,1705489848396,-500.0,0.00021917,2]
[311887829,1705489848404,-1841.76,0.00021917,2]
[311887831,1705489848414,-541.68,0.00021917,2]
[311887833,1705489848424,-500.0,0.00021917,2]
[311887835,1705489848433,-500.0,0.00021917,2]
[311887837,1705489848442,-1313.51,0.00021917,2]
[311887839,1705489848452,-7863.6,0.00021917,2]
[311887841,1705489848461,-669.79,0.00021917,2]
[311887843,1705489848470,-500.0,0.00021917,2]
[311887845,1705489848479,-500.0,0.00021917,2]
[311887847,1705489848489,-1235.43,0.00021917,2]
[311887849,1705489848498,-697.24,0.00021917,2]
[311887851,1705489848507,-1875.02,0.00021917,2]
[311887853,1705489848516,-500.0,0.00021917,2]
[311887855,1705489848526,-507.17811675,0.00021917,2]
[311887857,1705489848535,-886.27,0.00021917,2]
[311887859,1705489848544,-861.27,0.00021917,2]
[311887861,1705489848553,-863.63,0.00021917,2]
[311887863,1705489848562,-2235.54,0.00021917,2]
[311887865,1705489848571,-6074.67,0.00021917,2]
[311887867,1705489848580,-524.02,0.00021917,2]
[311887869,1705489848589,-500.0,0.00021917,2]
[311887871,1705489848598,-500.0,0.00021917,2]
[311887873,1705489848607,-4516.86,0.00021917,2]
[311887875,1705489848616,-500.0,0.00021917,2]
[311887876,1705489848625,-3841.76,0.00021917,2]
[311887878,1705489848634,-500.0,0.00021917,2]
[311887880,1705489848643,-974.16,0.00021917,2]
[311887881,1705489848653,-500.0,0.00021917,2]
[311887882,1705489848662,-4150.83,0.00021917,2]
[311887883,1705489848671,-4448.34,0.00021917,2]
[311887884,1705489848681,-500.0,0.00021917,2]
[311887885,1705489848690,-566.02,0.00021917,2]
[311887886,1705489848699,-500.0,0.00021917,2]
[311887887,1705489848709,-500.0,0.00021917,2]
[311887888,1705489848718,-500.0,0.00021917,2]
[311887889,1705489848728,-533.91,0.00021917,2]
[311887890,1705489848737,-500.0,0.00021917,2]
[311887891,1705489848747,-500.0,0.00021917,2]
[311887892,1705489848756,-500.0,0.00021917,2]
[311887893,1705489848765,-500.0,0.00021917,2]
[311887894,1705489848860,-1309.04,0.00021917,2]
[311887895,1705489848869,-500.0,0.00021917,2]
[311887896,1705489848878,-2935.1,0.00021917,2]
[311887897,1705489848888,-1965.44,0.00021917,2]
[311887898,1705489848896,-992.22,0.00021917,2]
[311887899,1705489848906,-984.15,0.00021917,2]
[311887900,1705489848915,-500.0,0.00021917,2]
[311887901,1705489848924,-500.0,0.00021917,2]
[311887902,1705489848934,-1696.71,0.00021917,2]
[311887903,1705489848943,-32469.27,0.00021917,2]
[311887904,1705489848953,-500.0,0.00021917,2]
[311887905,1705489848962,-500.0,0.00021917,2]
[311887906,1705489848971,-573.08,0.00021917,2]
[311887907,1705489848980,-500.0,0.00021917,2]
[311887908,1705489848989,-500.0,0.00021917,2]
[311887909,1705489848998,-661.33,0.00021917,2]
[311887910,1705489849008,-615.65,0.00021917,2]
[311887911,1705489849018,-649.27,0.00021917,2]
[311887912,1705489849030,-2575.9,0.00021917,2]
[311887913,1705489849039,-1939.24,0.00021917,2]
[311887914,1705489849048,-3511.42,0.00021917,2]
[311887915,1705489849057,-500.0,0.00021917,2]
[311887916,1705489849067,-500.0,0.00021917,2]
[311887917,1705489849077,-500.0,0.00021917,2]
[311887918,1705489849086,-500.0,0.00021917,2]
[311887919,1705489849095,-500.0,0.00021917,2]
[311887920,1705489849105,-1929.09,0.00021917,2]
[311887921,1705489849114,-500.0,0.00021917,2]
[311887922,1705489849123,-1412.27,0.00021917,2]
[311887923,1705489849132,-2389.77,0.00021917,2]
[311887924,1705489849142,-2475.33,0.00021917,2]
[311887925,1705489849151,-500.0,0.00021917,2]
[311887926,1705489849160,-4575.47,0.00021917,2]
[311887927,1705489849170,-14816.63,0.00021917,2]
[311887928,1705489849179,-661.55,0.00021917,2]
[311887929,1705489849189,-1653.65,0.00021917,2]
[311887930,1705489849198,-500.0,0.00021917,2]
[311887931,1705489849207,-1732.77,0.00021917,2]
[311887932,1705489849220,-500.0,0.00021917,2]
[311887933,1705489849229,-834.9,0.00021917,2]
[311887934,1705489849238,-8016.45,0.00021917,2]
[311887935,1705489849246,-500.0,0.00021917,2]
[311887936,1705489849255,-1784.49,0.00021917,2]
[311887937,1705489849264,-1352.99,0.00021917,2]
[311887938,1705489849273,-558.85,0.00021917,2]
[311887939,1705489849282,-500.0,0.00021917,2]
[311887940,1705489849290,-678.67,0.00021917,2]
[311887941,1705489849299,-1038.1,0.00021917,2]
[311887942,1705489849308,-9036.89,0.00021917,2]
[311887943,1705489849317,-611.2,0.00021917,2]
[311887944,1705489849328,-815.12,0.00021917,2]
[311887945,1705489849339,-500.0,0.00021917,2]
[311887946,1705489849349,-1774.09,0.00021917,2]
[311887947,1705489849358,-500.0,0.00021917,2]
[311887948,1705489849367,-502.32,0.00021917,2]
[311887949,1705489849378,-2414.66,0.00021917,2]
[311887950,1705489849387,-500.0,0.00021917,2]
[311887951,1705489849397,-5111.21,0.00021917,2]
[311887952,1705489849407,-500.0,0.00021917,2]
[311887953,1705489849416,-500.0,0.00021917,2]
[311887954,1705489849425,-1734.88,0.00021917,2]
[311887955,1705489849436,-855.29,0.00021917,2]
[311887956,1705489849446,-500.0,0.00021917,2]
[311887957,1705489849455,-500.0,0.00021917,2]
[311887958,1705489849464,-2245.54,0.00021917,2]
[311887959,1705489849474,-1744.59,0.00021917,2]
[311887960,1705489849483,-500.0,0.00021917,2]
[311887961,1705489849493,-500.0,0.00021917,2]
[311887962,1705489849502,-1274.36,0.00021917,2]
[311887963,1705489849512,-500.0,0.00021917,2]
[311887964,1705489849521,-706.05,0.00021917,2]
[311887965,1705489849531,-1510.08,0.00021917,2]
[311887966,1705489849541,-500.0,0.00021917,2]
[311887967,1705489849550,-500.0,0.00021917,2]
[311887968,1705489849559,-887.83,0.00021917,2]
[311887969,1705489849568,-1357.1,0.00021917,2]
[311887970,1705489849577,-1827.37,0.00021917,2]
[311887971,1705489849586,-1435.95,0.00021917,2]
[311887972,1705489849595,-584.24,0.00021917,2]
[311887973,1705489849604,-663.37,0.00021917,2]
[311887974,1705489849614,-779.77,0.00021917,2]
[311887975,1705489849627,-500.0,0.00021917,2]
[311887976,1705489849636,-597.44,0.00021917,2]
[311887977,1705489849645,-4561.81,0.00021917,2]
[311887978,1705489849654,-500.0,0.00021917,2]
[311887979,1705489849663,-500.0,0.00021917,2]
[311887980,1705489849672,-500.0,0.00021917,2]
[311887981,1705489849681,-500.0,0.00021917,2]
[311887982,1705489849690,-500.0,0.00021917,2]
[311887983,1705489849699,-3629.95,0.00021917,2]
[311887984,1705489849708,-1883.37,0.00021917,2]
[311887985,1705489849717,-916.35,0.00021917,2]
[311887986,1705489849726,-992.47,0.00021917,2]
[311887987,1705489849736,-500.0,0.00021917,2]
[311887988,1705489849745,-1639.63,0.00021917,2]
[311887989,1705489849754,-1741.77,0.00021917,2]
[311887990,1705489849763,-500.0,0.00021917,2]
[311887991,1705489849772,-3959.88,0.00021917,2]
[311887992,1705489849782,-820.93,0.00021917,2]
[311887993,1705489849791,-7153.04,0.00021917,2]
[311887994,1705489849801,-500.0,0.00021917,2]
[311887995,1705489849810,-2360.61,0.00021917,2]
[311887996,1705489849820,-500.0,0.00021917,2]
[311887997,1705489849829,-500.0,0.00021917,2]
[311887998,1705489849838,-782.9,0.00021917,2]
[311887999,1705489849847,-806.13,0.00021917,2]
[311888000,1705489849857,-504.59798574,0.00021917,2]
[311888001,1705489849866,-500.0,0.00021917,2]
[311888002,1705489849875,-507.5,0.00021917,2]
[311888003,1705489849884,-500.0,0.00021917,2]
[311888004,1705489849894,-1392.64,0.00021917,2]
[311888005,1705489849902,-1083.43,0.00021917,2]
[311888006,1705489849911,-500.0,0.00021917,2]
[311888007,1705489849921,-778.97,0.00021917,2]
[311888008,1705489849929,-502.25938473,0.00021917,2]
[311888009,1705489849938,-500.0,0.00021917,2]
[311888010,1705489849948,-909.26,0.00021917,2]
[311888011,1705489849957,-500.0,0.00021917,2]
[311888012,1705489849966,-979.46,0.00021917,2]
[311888013,1705489849975,-3419.57,0.00021917,2]
[311888014,1705489849985,-1060.67,0.00021917,2]
[311888015,1705489849994,-536.83952426,0.00021917,2]
[311888016,1705489850004,-500.0,0.00021917,2]
[311888017,1705489850014,-1861.48,0.00021917,2]
[311888018,1705489850023,-3566.82,0.00021917,5]
[311888019,1705489850033,-2842.76,0.00021917,2]
[311888020,1705489850042,-1210.04,0.00021917,2]
[311888021,1705489850051,-1159.83,0.00021917,2]
[311888022,1705489850060,-1906.25,0.00021917,2]
[311888023,1705489850069,-1195.39,0.00021917,2]
[311888024,1705489850078,-5873.11,0.00021917,2]
[311888025,1705489850087,-500.0,0.00021917,2]
[311888026,1705489850096,-500.0,0.00021917,2]
[311888027,1705489850105,-500.0,0.00021917,2]
[311888028,1705489850114,-1059.12,0.00021917,2]
[311888029,1705489850123,-500.0,0.00021917,2]
[311888030,1705489850132,-500.0,0.00021917,2]
[311888031,1705489850141,-2140.36,0.00021917,2]
[311888032,1705489850151,-1418.66,0.00021917,2]
[311888033,1705489850160,-3914.25,0.00021917,2]
[311888034,1705489850169,-1392.42,0.00021917,2]
[311888035,1705489850179,-1713.01,0.00021917,2]
[311888036,1705489850188,-500.0,0.00021917,2]
[311888037,1705489850197,-500.0,0.00021917,2]
[311888038,1705489850206,-778.99,0.00021917,2]
[311888039,1705489850215,-2146.35,0.00021917,2]
[311888040,1705489850225,-500.0,0.00021917,2]
[311888041,1705489850234,-2303.4,0.00021917,2]
[311888042,1705489850243,-500.0,0.00021917,2]
[311888043,1705489850253,-500.0,0.00021917,2]
[311888044,1705489850262,-500.0,0.00021917,2]
[311888045,1705489850271,-2140.57,0.00021917,2]
[311888046,1705489850280,-4765.45,0.00021917,2]
[311888047,1705489850290,-500.0,0.00021917,2]
[311888048,1705489850299,-1461.06,0.00021917,2]
[311888049,1705489850309,-500.0,0.00021917,2]
[311888050,1705489850318,-672.09,0.00021917,2]
[311888051,1705489850328,-1784.9,0.00021917,2]
[311888052,1705489850338,-539.85,0.00021917,2]
[311888053,1705489850349,-501.12426457,0.00021917,2]
[311888054,1705489850358,-27781.74,0.00021917,2]
[311888055,1705489850367,-1509.91,0.00021917,2]
[311888056,1705489850377,-534.01,0.00021917,2]
[311888057,1705489850387,-881.13,0.00021917,2]
[311888058,1705489850397,-1969.05,0.00021917,2]
[311888059,1705489850406,-2094.77,0.00021917,2]
[311888060,1705489850417,-591.22,0.00021917,2]
[311888061,1705489850426,-500.0,0.00021917,2]
[311888062,1705489850435,-500.0,0.00021917,2]
[311888063,1705489850445,-1724.25,0.00021917,2]
[311888064,1705489850454,-500.0,0.00021917,2]
[311888065,1705489850463,-2966.94,0.00021917,2]
[311888066,1705489850472,-500.0,0.00021917,2]
[311888067,1705489850481,-500.0,0.00021917,2]
[311888068,1705489850490,-500.0,0.00021917,2]
[311888069,1705489850500,-1073.7,0.00021917,2]
[311888070,1705489850509,-2716.01,0.00021917,2]
[311888071,1705489850518,-856.24,0.00021917,2]
[311888072,1705489850527,-505.57341323,0.00021917,2]
[311888073,1705489850536,-3130.06,0.00021917,2]
[311888074,1705489850545,-5190.51,0.00021917,2]
[311888075,1705489850554,-1373.46,0.00021917,2]
[311888076,1705489850563,-1107.84,0.00021917,2]
[311888077,1705489850572,-500.0,0.00021917,2]
[311888078,1705489850581,-500.0,0.00021917,2]
[311888079,1705489850590,-500.0,0.00021917,2]
[311888080,1705489850600,-500.59102952,0.00021917,2]
[311888081,1705489850609,-4976.8,0.00021917,2]
[311888082,1705489850618,-2577.68,0.00021917,2]
[311888083,1705489850627,-1821.72,0.00021917,2]
[311888084,1705489850636,-500.0,0.00021917,2]
[311888085,1705489850646,-500.0,0.00021917,2]
[311888086,1705489850655,-2636.23,0.00021917,2]
[311888087,1705489850664,-500.0,0.00021917,2]
[311888088,1705489850674,-500.0,0.00021917,2]
[311888089,1705489850683,-795.84,0.00021917,2]
[311888090,1705489850692,-4042.57,0.00021917,2]
[311888091,1705489850701,-1181.55,0.00021917,2]
[311888092,1705489850711,-500.0,0.00021917,2]
[311888093,1705489850720,-500.0,0.00021917,2]
[311888094,1705489850729,-500.0,0.00021917,2]
[311888095,1705489850738,-500.0,0.00021917,2]
[311888096,1705489850747,-1662.15,0.00021917,2]
[311888097,1705489850757,-500.0,0.00021917,2]
[311888098,1705489850767,-964.47,0.00021917,2]
[311888099,1705489850776,-221.06803862,0.00021917,2]
[311888100,1705489850786,-500.0,0.00021917,2]
[311888101,1705489850795,-829.46,0.00021917,2]
[311888102,1705489850804,-1443.1,0.00021917,2]
[311888103,1705489850813,-500.0,0.00021917,2]
[311888104,1705489850822,-500.0,0.00021917,2]
[311888105,1705489850831,-1683.87,0.00021917,2]
[311888106,1705489850840,-508.65788155,0.00021917,2]
[311888107,1705489850849,-1912.07,0.00021917,2]
[311888108,1705489850858,-500.0,0.00021917,2]
[311888109,1705489850867,-649.62,0.00021917,2]
[311888110,1705489850876,-602.95,0.00021917,2]
[311888111,1705489850885,-2975.27,0.00021917,2]
[311888112,1705489850894,-1794.36,0.00021917,2]
[311888113,1705489850904,-1938.89,0.00021917,2]
[311888114,1705489850913,-3013.34,0.00021917,2]
[311888115,1705489850922,-8143.8,0.00021917,2]
[311888116,1705489850932,-500.0,0.00021917,2]
[311888117,1705489850941,-509.62,0.00021917,2]
[311888118,1705489850950,-1207.37,0.00021917,2]
[311888119,1705489850959,-1304.2,0.00021917,2]
[311888120,1705489850968,-500.0,0.00021917,2]
[311888121,1705489850977,-1538.7,0.00021917,2]
[311888122,1705489850987,-924.58,0.00021917,2]
[311888123,1705489850996,-2403.64,0.00021917,2]
[311888124,1705489851005,-500.0,0.00021917,2]
[311888125,1705489851015,-500.0,0.00021917,2]
[311888126,1705489851024,-852.81,0.00021917,2]
[311888127,1705489851034,-3134.72,0.00021917,2]
[311888128,1705489851043,-1937.17,0.00021917,2]
[311888129,1705489851052,-1023.73,0.00021917,2]
[311888130,1705489851062,-3134.72,0.00021917,2]
[311888131,1705489851071,-1179.93,0.00021917,2]
[311888132,1705489851080,-3134.72,0.00021917,2]
[311888133,1705489851090,-3134.72,0.00021917,2]
[311888134,1705489851099,-500.0,0.00021917,2]
[311888135,1705489851108,-3134.72,0.00021917,2]
[311888136,1705489851118,-3134.72,0.00021917,2]
[311888137,1705489851127,-2592.46,0.00021917,2]
[311888138,1705489851136,-968.29,0.00021917,2]
[311888139,1705489851145,-3413.16,0.00021917,2]
[311888140,1705489851154,-500.0,0.00021917,2]
[311888141,1705489851163,-500.0,0.00021917,2]
[311888142,1705489851172,-500.0,0.00021917,2]
[311888143,1705489851181,-500.0,0.00021917,2]
[311888144,1705489851191,-745.84,0.00021917,2]
[311888145,1705489851203,-1297.47,0.00021917,2]
[311888146,1705489851213,-2908.69,0.00021917,2]
[311888147,1705489851222,-1190.11,0.00021917,2]
[311888148,1705489851231,-500.0,0.00021917,2]
[311888149,1705489851239,-815.9,0.00021917,2]
[311888150,1705489851250,-3604.29,0.00021917,5]
[311888151,1705489851259,-500.0,0.00021917,2]
[311888152,1705489851268,-8716.14,0.00021917,2]
[311888153,1705489851278,-601.43,0.00021917,2]
[311888154,1705489851288,-2488.53,0.00021917,2]
[311888155,1705489851296,-500.0,0.00021917,2]
[311888156,1705489851305,-681.48,0.00021917,2]
[311888157,1705489851314,-1866.72,0.00021917,2]
[311888158,1705489851324,-500.0,0.00021917,2]
[311888159,1705489851334,-571.22,0.00021917,2]
[311888160,1705489851347,-1014.39,0.00021917,2]
[311888161,1705489851356,-737.47,0.00021917,2]
[311888162,1705489851366,-500.0,0.00021917,2]
[311888163,1705489851376,-692.46,0.00021917,2]
[311888164,1705489851386,-612.12,0.00021917,2]
[311888165,1705489851396,-1194.88,0.00021917,2]
[311888166,1705489851405,-250.0,0.00021918,2]
[311888167,1705489851415,-157.38,0.00021924,2]
[311888168,1705489851424,-328.95724517,0.00021954,2]
[311888169,1705489851434,-638.84363241,0.00021974,2]
[311888170,1705489851445,-184.67736104,0.00021975,2]
[311888171,1705489851454,-1250.0,0.00022,3]
[311888172,1705489851464,-800.0,0.00022013,2]
[311888173,1705489851473,-800.0,0.00022014,2]
[311888174,1705489851483,-800.0,0.00022014,2]
[311888175,1705489851492,-1411.487,0.00022075,2]
[311888176,1705489851502,-4172.0,0.00022075,2]
[311888177,1705489851512,-6241.838,0.00022075,2]
[311888178,1705489851521,-2282.44,0.00022075,2]
[311888179,1705489851531,-3187.48,0.00022075,2]
[311888180,1705489851540,-19701.0,0.00022075,2]
[311888181,1705489851549,-3107.19,0.00022075,2]
[311888182,1705489851559,-2921.338,0.00022075,2]
[311888183,1705489851568,-1029.0,0.00022075,2]
[311888184,1705489851577,-150.0,0.00022075,2]
[311888185,1705489851586,-158.15556964,0.00022078,2]
[311888186,1705489851596,-440.53439384,0.0002209,2]